bitfinex-derivatives/quotes_SOLF0:USTF0_20250904
["timestamp","ask_amount","ask_price","bid_price","bid_amount"]
[1756987441257,7.77,207.34,207.28,2.56036237]
[1756987441457,7.77,207.34,207.26,7.66]
[1756987441759,4.3395,207.34,207.26,10.22036237]
[1756987441964,7.77,207.33,207.25,2.56036237]
[1756987442466,4.34,207.32,207.25,2.56036237]
[1756987443270,4.34,207.32,207.26,7.66]
[1756987444270,67.4973,207.36,207.22,123.82]
[1756987444471,7.77,207.35,207.24,2.56036237]
[1756987444769,67.4973,207.36,207.24,10.22036237]
[1756987444969,4.3399,207.32,207.24,10.22036237]
[1756987445171,7.77,207.31,207.24,10.22036237]
[1756987445470,7.77,207.36,207.28,7.66]
[1756987446970,4.3395,207.34,207.28,7.66]
[1756987447172,7.77,207.33,207.28,7.66]
[1756987447371,72.83223919,207.38,207.23,7.66]
[1756987447570,7.77,207.37,207.25,2.56036237]
[1756987447967,4.34,207.32,207.25,6.90156237]
[1756987448171,12.11,207.32,207.25,6.90156237]
[1756987449371,4.3402,207.31,207.25,6.90156237]
[1756987449567,7.77,207.32,207.26,12.001]
[1756987449868,2.56036237,207.37,207.26,7.66]
[1756987449869,7.77,207.37,207.26,7.66]
[1756987450069,4.3393,207.35,207.26,7.66]
[1756987450267,4.3393,207.35,207.22,191.0005]
[1756987450268,4.3393,207.35,207.28,14.56086237]
[1756987450467,7.77,207.37,207.28,10.22036237]
[1756987450973,7.77,207.37,207.29,4.3403]
[1756987450974,4.3391,207.36,207.29,4.3403]
[1756987452062,4.3391,207.36,207.31,2.56036237]
[1756987452268,7.52,207.35,207.31,10.49036237]
[1756987452671,4.3387,207.38,207.31,10.49036237]
[1756987454372,4.3389,207.37,207.31,10.49036237]
[1756987456468,11.8585,207.39,207.34,2.56036237]
[1756987456672,7.52,207.39,207.35,7.93]
[1756987457668,7.52,207.39,207.33,4.3395]
[1756987457873,7.52,207.39,207.35,7.93]
[1756987458076,7.52,207.43,207.35,7.93]
[1756987458975,7.52,207.39,207.35,7.93]
[1756987459169,4.3383,207.4,207.35,7.93]
[1756987459968,7.52,207.39,207.35,7.93]
[1756987461576,4.3383,207.4,207.35,7.93]
[1756987461772,7.52,207.39,207.35,7.93]
[1756987462978,4.3383,207.4,207.35,7.93]
[1756987463180,7.52,207.39,207.35,7.93]
[1756987463978,4.3383,207.4,207.35,7.93]
[1756987464175,4.3385,207.39,207.35,7.93]
[1756987464375,7.52,207.38,207.35,7.93]
[1756987467078,7.52,207.38,207.34,2.56036237]
[1756987467079,11.8585,207.39,207.34,2.56036237]
[1756987467271,11.8585,207.39,207.35,7.93]
[1756987468677,11.8585,207.39,207.34,2.56036237]
[1756987468877,11.8585,207.39,207.34,7.93]
[1756987469078,11.8585,207.39,207.36,7.93]
[1756987469277,11.8585,207.39,207.35,2.56036237]
[1756987469482,11.8585,207.39,207.36,7.93]
[1756987469782,7.52,207.38,207.36,7.93]
[1756987471078,7.52,207.38,207.35,2.56036237]
[1756987471278,7.52,207.38,207.35,10.49036237]
[1756987471479,7.52,207.38,207.35,7.93]
[1756987471677,7.52,207.38,207.35,10.49036237]
[1756987471880,7.52,207.37,207.33,2.56036237]
[1756987472086,7.52,207.37,207.34,7.93]
[1756987474485,11.8583,207.4,207.34,7.93]
[1756987474686,11.8583,207.4,207.36,2.56036237]
[1756987474886,67.4689,207.45,207.36,2.56036237]
[1756987474887,7.52,207.39,207.36,10.49036237]
[1756987475384,7.52,207.39,207.34,2.56036237]
[1756987475583,11.8583,207.4,207.34,10.49036237]
[1756987476186,7.52,207.43,207.37,2.56036237]
[1756987476380,7.52,207.46,207.37,10.49036237]
[1756987476579,67.4626,207.47,207.37,10.49036237]
[1756987476781,4.3377,207.43,207.37,10.49036237]
[1756987476976,67.4626,207.47,207.37,7.93]
[1756987477183,67.4626,207.47,207.35,2.56036237]
[1756987477184,7.52,207.44,207.35,2.56036237]
[1756987477682,7.52,207.44,207.34,7.93]
[1756987477886,4.3383,207.4,207.35,2.56036237]
[1756987478087,7.52,207.39,207.35,10.49036237]
[1756987478386,7.52,207.39,207.36,7.93]
[1756987479081,7.52,207.39,207.35,2.56036237]
[1756987479082,4.3383,207.4,207.35,2.56036237]
[1756987479585,4.3383,207.4,207.36,7.93]
[1756987479586,11.8583,207.4,207.36,7.93]
[1756987479786,7.52,207.4,207.35,2.56036237]
[1756987479990,4.3378,207.42,207.36,7.93]
[1756987482989,11.8478,207.42,207.36,7.93]
[1756987483191,7.51,207.42,207.33,4.3396]
[1756987483390,7.51,207.44,207.34,2.56036237]
[1756987483786,4.3383,207.4,207.35,7.73]
[1756987484384,4.3383,207.4,207.34,6.89966237]
[1756987485092,4.3383,207.4,207.35,7.73]
[1756987485389,4.3383,207.4,207.34,6.89966237]
[1756987485589,4.3383,207.4,207.35,7.73]
[1756987485790,4.3383,207.4,207.34,6.89966237]
[1756987485986,4.3383,207.4,207.35,7.73]
[1756987486785,4.3383,207.4,207.34,6.89966237]
[1756987486992,4.3383,207.4,207.35,7.73]
[1756987487187,4.3383,207.4,207.34,6.89966237]
[1756987487391,4.3383,207.4,207.35,7.73]
[1756987487591,4.3383,207.4,207.34,6.89966237]
[1756987488492,4.3383,207.4,207.35,7.73]
[1756987489194,4.3383,207.4,207.34,6.89966237]
[1756987489992,4.3376,207.43,207.34,6.89966237]
[1756987490291,5.34153919,207.47,207.41,7.73]
[1756987490693,11.8472,207.45,207.41,7.73]
[1756987491393,4.3372,207.45,207.41,7.73]
[1756987491593,7.51,207.44,207.41,7.73]
[1756987497497,7.51,207.44,207.43,1.63565183]
[1756987499889,4.3368,207.47,207.43,1.63565183]
[1756987499890,7.51,207.46,207.43,9.36565183]
[1756987500400,11.847,207.46,207.43,1.63565183]
[1756987500600,4.337,207.46,207.43,1.63565183]
[1756987500900,7.51,207.45,207.43,1.63565183]
[1756987501994,4.337,207.46,207.4,7.73]
[1756987502194,4.337,207.46,207.43,1.63565183]
[1756987502591,7.51,207.45,207.43,1.63565183]
[1756987504499,4.337,207.46,207.43,1.63565183]
[1756987504802,7.51,207.45,207.43,1.63565183]
[1756987504993,4.337,207.46,207.43,1.63565183]
[1756987505199,7.51,207.45,207.43,1.63565183]
[1756987505602,7.51,207.45,207.43,9.36565183]
[1756987506303,190.10392932,207.5,207.44,7.73]
[1756987506504,76.1036,207.56,207.36,67.496]
[1756987506505,7.51,207.54,207.48,1.63565183]
[1756987506898,4.3355,207.53,207.48,1.63565183]
[1756987507202,4.3355,207.53,207.48,9.36565183]
[1756987507405,7.51,207.52,207.5,1.63565183]
[1756987507607,4.3355,207.53,207.5,1.63565183]
[1756987507900,7.51,207.52,207.5,1.63565183]
[1756987508099,4.3355,207.53,207.5,1.63565183]
[1756987508401,4.3351,207.55,207.5,9.36565183]
[1756987508705,7.51,207.54,207.52,1.63565183]
[1756987509204,4.3351,207.55,207.52,1.63565183]
[1756987510705,7.51,207.54,207.52,1.63565183]
[1756987512313,4.3351,207.55,207.52,1.63565183]
[1756987512705,7.94,207.54,207.52,1.63565183]
[1756987513402,7.94,207.54,207.5,7.73]
[1756987513595,4.3351,207.55,207.52,1.63565183]
[1756987513797,7.94,207.54,207.5,1.63565183]
[1756987514001,7.94,207.56,207.5,1.63565183]
[1756987515006,4.3356,207.53,207.5,1.63565183]
[1756987515308,7.94,207.52,207.5,1.63565183]
[1756987516109,7.94,207.52,207.5,9.50565183]
[1756987519506,7.94,207.54,207.5,9.50565183]
[1756987519709,7.94,207.54,207.52,1.63565183]
[1756987520206,7.94,207.56,207.53,9.50565183]
[1756987521310,7.94,207.56,207.53,1.63565183]
[1756987521515,7.94,207.58,207.55,9.50565183]
[1756987522217,12.2745,207.58,207.55,9.50565183]
[1756987522406,4.3345,207.58,207.55,1.63565183]
[1756987522611,7.94,207.57,207.55,1.63565183]
[1756987522813,7.94,207.56,207.55,1.63565183]
[1756987523011,7.94,207.56,207.54,1.63565183]
[1756987524920,7.94,207.56,207.5,7.87]
[1756987525120,4.3348,207.57,207.54,1.63565183]
[1756987525322,7.94,207.56,207.54,1.63565183]
[1756987525514,4.3348,207.57,207.54,1.63565183]
[1756987525721,7.94,207.56,207.54,1.63565183]
[1756987526221,4.3348,207.57,207.54,1.63565183]
[1756987527018,7.94,207.56,207.54,1.63565183]
[1756987527924,12.2748,207.57,207.54,9.50565183]
[1756987528528,12.2748,207.57,207.54,7.87]
[1756987528827,12.2748,207.57,207.55,1.63565183]
[1756987529025,4.3348,207.57,207.55,1.63565183]
[1756987529229,12.2748,207.57,207.55,1.63565183]
[1756987529725,7.94,207.56,207.55,1.63565183]
[1756987541726,7.94,207.57,207.55,1.63565183]
[1756987542729,7.78,207.58,207.55,1.63565183]
[1756987543034,7.78,207.58,207.57,1.63565183]
[1756987543537,12.1151,207.55,207.54,1.63565183]
[1756987543735,7.78,207.57,207.46,7.66]
[1756987543926,9.41565183,207.57,207.5,1.63565183]
[1756987544431,4.3355,207.54,207.5,1.63565183]
[1756987544625,7.78,207.53,207.5,9.29565183]
[1756987546235,7.78,207.53,207.51,7.66]
[1756987548135,7.78,207.53,207.5,1.63565183]
[1756987548136,12.116,207.51,207.45,7.66]
[1756987548334,7.78,207.5,207.47,1.63565183]
[1756987548531,7.78,207.5,207.47,9.29565183]
[1756987549028,7.78,207.5,207.47,7.66]
[1756987549228,7.78,207.5,207.48,1.63565183]
[1756987550940,7.78,207.5,207.47,7.66]
[1756987551236,7.78,207.5,207.48,1.63565183]
[1756987555234,7.78,207.5,207.47,7.66]
[1756987555540,7.78,207.5,207.48,1.63565183]
[1756987557739,7.78,207.5,207.48,9.29565183]
[1756987558546,7.78,207.52,207.48,9.29565183]
[1756987558839,4.3356,207.53,207.5,1.63565183]
[1756987559441,4.3356,207.53,207.48,10.21410586]
[1756987559635,7.78,207.52,207.48,10.21410586]
[1756987559836,7.78,207.56,207.49,7.66]
[1756987560038,7.78,207.56,207.52,7.66]
[1756987560233,7.78,207.59,207.52,7.66]
[1756987560437,7.78,207.56,207.5,2.55410586]
[1756987561548,4.3352,207.55,207.5,2.55410586]
[1756987561743,12.1152,207.55,207.51,7.66]
[1756987561940,7.78,207.54,207.51,7.66]
[1756987562347,187.8166494,207.61,207.51,7.66]
[1756987562547,7.78,207.6,207.51,7.66]
[1756987562948,12.1147,207.57,207.51,7.66]
[1756987563848,7.78,207.6,207.54,7.66]
[1756987565848,4.3342,207.6,207.55,2.55410586]
[1756987566055,7.78,207.63,207.55,2.55410586]
[1756987566757,7.78,207.58,207.55,2.55410586]
[1756987566952,7.78,207.62,207.55,2.55410586]
[1756987568052,7.78,207.57,207.55,2.55410586]
[1756987570261,7.78,207.57,207.55,10.21410586]
[1756987570754,4.3349,207.56,207.48,4.3365]
[1756987570951,4.3349,207.56,207.54,7.66]
[1756987571858,7.78,207.57,207.54,7.66]
[1756987572558,7.78,207.57,207.54,7.92]
[1756987573054,67.4094,207.63,207.54,7.92]
[1756987573254,7.65,207.62,207.54,7.92]
[1756987574059,4.3347,207.57,207.54,7.92]
[1756987574259,11.9847,207.57,207.54,7.92]
[1756987574759,11.9847,207.57,207.53,2.55410586]
[1756987574960,11.9847,207.57,207.54,7.92]
[1756987576560,11.9847,207.57,207.53,2.55410586]
[1756987576756,4.3343,207.59,207.53,2.55410586]
[1756987576958,4.3343,207.59,207.54,7.92]
[1756987577154,4.3343,207.59,207.53,2.55410586]
[1756987577462,4.3345,207.58,207.53,10.47410586]
[1756987577760,75.0711,207.6,207.51,2.55410586]
[1756987577960,4.3352,207.55,207.51,2.55410586]
[1756987578162,7.65,207.54,207.51,10.47410586]
[1756987578863,7.65,207.54,207.51,2.55410586]
[1756987579061,7.65,207.59,207.51,10.47410586]
[1756987579361,7.65,207.59,207.52,7.92]
[1756987579558,67.4158,207.61,207.51,2.55410586]
[1756987579864,7.65,207.6,207.51,2.55410586]
[1756987580858,11.9852,207.55,207.51,2.55410586]
[1756987581063,11.9852,207.55,207.52,7.92]
[1756987581964,11.9848,207.57,207.51,2.55410586]
[1756987582560,4.3348,207.57,207.51,2.55410586]
[1756987582862,7.65,207.58,207.55,7.92]
[1756987583065,67.4094,207.63,207.55,7.92]
[1756987583253,4.3347,207.57,207.54,2.55410586]
[1756987583458,7.65,207.56,207.54,2.55410586]
[1756987583857,4.335,207.56,207.54,2.55410586]
[1756987584063,4.335,207.56,207.49,124.2362]
[1756987584064,7.65,207.59,207.49,7.92]
[1756987584368,67.4239,207.59,207.49,10.47410586]
[1756987585163,7.65,207.58,207.49,10.47410586]
[1756987585359,67.4239,207.59,207.49,10.47410586]
[1756987585967,11.9855,207.54,207.49,2.55410586]
[1756987586363,7.65,207.53,207.5,7.92]
[1756987587469,7.65,207.53,207.49,2.55410586]
[1756987587865,7.65,207.53,207.5,7.92]
[1756987588163,7.65,207.53,207.49,2.55410586]
[1756987588369,7.65,207.53,207.5,7.92]
[1756987588673,7.65,207.53,207.49,2.55410586]
[1756987589170,7.65,207.53,207.5,7.92]
[1756987589371,7.65,207.53,207.49,2.55410586]
[1756987589572,7.65,207.53,207.5,7.92]
[1756987589770,7.65,207.53,207.49,2.55410586]
[1756987589973,11.9849,207.56,207.52,2.55410586]
[1756987590272,11.9849,207.56,207.53,7.92]
[1756987590472,67.4157,207.61,207.53,7.92]
[1756987590473,11.9852,207.55,207.53,7.92]
[1756987590672,11.9852,207.55,207.52,2.55410586]
[1756987590673,7.65,207.54,207.52,2.55410586]
[1756987591081,7.65,207.54,207.52,10.47410586]
[1756987592277,4.3347,207.57,207.53,7.92]
[1756987592477,7.65,207.58,207.52,2.55410586]
[1756987592672,7.65,207.58,207.55,2.55410586]
[1756987592878,7.65,207.58,207.55,10.47410586]
[1756987593377,7.65,207.58,207.47,4.03730321]
[1756987593378,7.65,207.56,207.47,4.03730321]
[1756987593571,7.65,207.56,207.47,2.55410586]
[1756987593775,7.65,207.56,207.46,7.92]
[1756987595884,4.3358,207.52,207.46,7.92]
[1756987596083,11.9858,207.52,207.46,7.92]
[1756987598084,4.336,207.51,207.45,7.92]
[1756987599686,4.336,207.51,207.45,127.46]
[1756987600485,4.336,207.51,207.45,119.54]
[1756987600686,4.336,207.51,207.46,7.92]
[1756987600885,4.336,207.51,207.45,119.54]
[1756987601185,4.336,207.51,207.46,7.92]
[1756987601384,4.3362,207.5,207.46,7.92]
[1756987602183,4.3362,207.5,207.46,7.25]
[1756987602785,4.3362,207.5,207.45,119.54]
[1756987602980,4.3362,207.5,207.45,122.09410586]
[1756987603385,4.3362,207.5,207.46,7.25]
[1756987603785,4.3362,207.5,207.45,122.09410586]
[1756987604197,4.3362,207.5,207.46,7.25]
[1756987604385,4.3362,207.5,207.45,122.09410586]
[1756987604990,4.3362,207.5,207.46,7.25]
[1756987605189,11.9858,207.52,207.46,7.25]
[1756987605893,0.03093779,207.51,207.48,7.25]
[1756987606490,0.03093779,207.51,207.47,0.03690744]
[1756987606690,0.03093779,207.51,207.48,7.25]
[1756987606991,0.03093779,207.51,207.47,0.03690744]
[1756987607289,0.03093779,207.51,207.48,7.25]
[1756987607987,0.03093779,207.51,207.49,7.25]
[1756987609489,0.03093779,207.51,207.49,12.0661]
[1756987609685,0.03093779,207.51,207.5,7.25]
[1756987609886,7.5,207.58,207.5,7.25]
[1756987610091,7.5,207.58,207.54,7.25]
[1756987611096,4.3343,207.59,207.54,7.28427699]
[1756987611296,11.8346,207.58,207.54,7.28427699]
[1756987611596,7.5,207.57,207.54,7.28427699]
[1756987613198,7.5,207.57,207.54,0.03427699]
[1756987613404,7.5,207.57,207.55,7.25]
[1756987613597,7.5,207.6,207.56,2.55410586]
[1756987613797,4.334,207.61,207.56,2.55410586]
[1756987613997,11.834,207.61,207.57,7.25]
[1756987614193,11.834,207.61,207.56,2.58457893]
[1756987614899,11.834,207.61,207.57,7.25]
[1756987615501,11.834,207.61,207.56,2.58457893]
[1756987616101,11.834,207.61,207.57,7.25]
[1756987617102,7.5,207.6,207.57,7.25]
[1756987617491,4.3341,207.6,207.57,7.25]
[1756987617691,7.5,207.59,207.56,9.83457893]
[1756987617899,7.5,207.59,207.57,7.25]
[1756987620203,7.5,207.61,207.56,2.58457893]
[1756987620497,7.5,207.65,207.59,9.80410586]
[1756987621095,11.8333,207.64,207.6,7.28253376]
[1756987621297,7.5,207.63,207.61,7.25]
[1756987621504,7.5,207.63,207.62,1.63274427]
[1756987622203,7.5,207.63,207.6,7.28253376]
[1756987622503,7.5,207.63,207.62,1.63274427]
[1756987627304,7.5,207.65,207.62,8.88274427]
[1756987627502,7.5,207.65,207.64,1.63274427]
[1756987629803,186.6917,207.75,207.64,8.88274427]
[1756987629804,7.5,207.67,207.64,8.88274427]
[1756987630010,7.5,207.67,207.66,1.63274427]
[1756987631310,7.5,207.67,207.64,7.28510919]
[1756987631311,9.61274427,207.67,207.64,0.03510919]
[1756987631511,7.5,207.64,207.57,1.63274427]
[1756987632503,4.3335,207.63,207.59,1.63274427]
[1756987632707,7.84,207.62,207.59,1.63274427]
[1756987633107,4.333,207.65,207.61,1.63274427]
[1756987633301,1.63274427,207.68,207.62,1.63274427]
[1756987633504,7.84,207.67,207.62,1.63274427]
[1756987634213,120.15831181,207.75,207.62,1.63274427]
[1756987634415,4.3326,207.67,207.62,1.63274427]
[1756987634914,4.3326,207.67,207.62,9.20274427]
[1756987635412,4.3326,207.67,207.56,4.3348]
[1756987635613,67.378,207.73,207.56,4.3348]
[1756987635614,12.173,207.66,207.61,1.63274427]
[1756987635809,4.333,207.66,207.61,1.63274427]
[1756987636010,7.84,207.65,207.61,1.63274427]
[1756987636204,4.333,207.66,207.61,1.63274427]
[1756987636512,4.333,207.66,207.63,1.63274427]
[1756987636711,7.84,207.65,207.63,1.63274427]
[1756987637312,4.333,207.66,207.63,1.63274427]
[1756987637614,7.84,207.65,207.63,1.63274427]
[1756987637816,4.333,207.66,207.63,1.63274427]
[1756987638107,7.84,207.65,207.63,1.63274427]
[1756987638306,4.333,207.66,207.63,1.63274427]
[1756987638704,7.84,207.65,207.63,1.63274427]
[1756987638905,4.333,207.66,207.63,1.63274427]
[1756987639113,7.84,207.65,207.63,1.63274427]
[1756987639312,4.333,207.66,207.63,1.63274427]
[1756987639709,7.84,207.65,207.63,1.63274427]
[1756987641413,4.333,207.66,207.63,1.63274427]
[1756987642007,7.84,207.65,207.6,7.57]
[1756987642212,4.333,207.66,207.62,1.63274427]
[1756987643016,7.84,207.65,207.62,1.63274427]
[1756987643211,4.333,207.66,207.62,1.63274427]
[1756987643416,7.84,207.65,207.62,1.63274427]
[1756987643611,1.63274427,207.67,207.55,4.335]
[1756987643813,1.63274427,207.65,207.58,1.63274427]
[1756987644017,7.84,207.64,207.58,1.63274427]
[1756987644213,4.3338,207.62,207.57,1.63274427]
[1756987644420,7.84,207.61,207.57,1.63274427]
[1756987644619,7.84,207.61,207.59,1.63274427]
[1756987644819,7.84,207.61,207.59,9.20274427]
[1756987647126,4.3335,207.63,207.6,7.57]
[1756987647127,12.1735,207.63,207.6,7.57]
[1756987647423,12.1735,207.63,207.61,1.63274427]
[1756987647622,4.3335,207.63,207.6,1.63274427]
[1756987648217,7.84,207.61,207.55,119.3]
[1756987648414,7.84,207.61,207.58,1.63274427]
[1756987648625,7.84,207.61,207.58,9.20274427]
[1756987651622,4.334,207.61,207.57,1.63274427]
[1756987652014,7.84,207.6,207.57,1.63274427]
[1756987652414,7.84,207.6,207.57,9.20274427]
[1756987652819,12.174,207.61,207.59,1.63274427]
[1756987656130,7.84,207.61,207.59,1.63274427]
[1756987657531,12.1731,207.65,207.59,7.57]
[1756987657721,12.1731,207.65,207.55,111.18065748]
[1756987657722,4.3331,207.65,207.6,9.20274427]
[1756987657928,7.84,207.64,207.59,1.63274427]
[1756987658124,1.63274427,207.66,207.59,1.63274427]
[1756987658420,7.84,207.62,207.61,1.63274427]
[1756987658829,7.84,207.64,207.61,1.63274427]
[1756987659032,4.3331,207.65,207.61,1.63274427]
[1756987659226,7.84,207.64,207.61,1.63274427]
[1756987659427,4.3333,207.64,207.58,11.9043]
[1756987659631,4.3333,207.64,207.6,1.63274427]
[1756987660031,7.84,207.63,207.6,1.63274427]
[1756987660733,4.3333,207.64,207.6,1.63274427]
[1756987660926,7.84,207.63,207.6,1.63274427]
[1756987661328,4.3333,207.64,207.6,1.63274427]
[1756987662137,7.58,207.63,207.58,7.57]
[1756987662335,7.58,207.63,207.61,1.63274427]
[1756987662835,4.3333,207.64,207.61,1.63274427]
[1756987663232,7.58,207.63,207.61,1.63274427]
[1756987663534,1.63274427,207.65,207.58,1.63274427]
[1756987663837,7.58,207.64,207.58,1.63274427]
[1756987664434,7.58,207.64,207.6,1.63274427]
[1756987664736,7.58,207.66,207.6,1.63274427]
[1756987665333,7.58,207.66,207.57,7.93]
[1756987665334,4.3333,207.64,207.62,1.63274427]
[1756987665531,11.9133,207.64,207.62,1.63274427]
[1756987665833,11.9125,207.68,207.62,9.56274427]
[1756987666034,7.58,207.67,207.66,1.63274427]
[1756987666435,7.58,207.72,207.66,1.63274427]
[1756987666634,7.58,207.74,207.69,1.63274427]
[1756987667039,7.58,207.74,207.63,4.3333]
[1756987667337,7.58,207.74,207.68,1.63274427]
[1756987667833,4.3318,207.71,207.68,1.63274427]
[1756987668035,7.58,207.7,207.68,1.63274427]
[1756987668240,1.63274427,207.75,207.68,1.63274427]
[1756987668441,7.58,207.74,207.68,1.63274427]
[1756987669840,4.3321,207.7,207.68,1.63274427]
[1756987670040,7.58,207.69,207.68,1.63274427]
[1756987670234,7.58,207.74,207.68,1.63274427]
[1756987670433,7.58,207.72,207.71,1.63274427]
[1756987670733,4.3315,207.73,207.71,9.56274427]
[1756987670941,4.3315,207.73,207.71,1.63274427]
[1756987670942,11.9115,207.73,207.71,1.63274427]
[1756987671242,7.58,207.72,207.71,1.63274427]
[1756987674843,67.3683,207.76,207.64,129.6632]
[1756987675050,7.58,207.75,207.7,1.63274427]
[1756987675542,7.58,207.72,207.7,1.63274427]
[1756987677047,7.58,207.72,207.67,7.93]
[1756987677243,7.58,207.72,207.71,1.63274427]
[1756987678149,7.58,207.72,207.65,98.7328]
[1756987678350,7.58,207.72,207.71,1.63274427]
[1756987678549,4.3314,207.73,207.71,1.63274427]
[1756987678749,11.9114,207.73,207.71,1.63274427]
[1756987678945,11.9114,207.73,207.72,1.63274427]
[1756987679958,7.58,207.73,207.72,1.63274427]
[1756987681157,7.58,207.76,207.72,9.56274427]
[1756987681358,7.58,207.76,207.74,1.63274427]
[1756987681757,4.3305,207.77,207.74,1.63274427]
[1756987681967,183.9194024,207.79,207.7,7.93]
[1756987682154,11.9108,207.76,207.73,1.63274427]
[1756987682355,4.3308,207.76,207.73,1.63274427]
[1756987682554,7.58,207.75,207.73,1.63274427]
[1756987682754,4.3308,207.76,207.73,1.63274427]
[1756987683460,4.3308,207.76,207.7,2.54866465]
[1756987683655,7.58,207.76,207.7,2.54866465]
[1756987683960,7.58,207.76,207.7,10.47866465]
[1756987684157,7.58,207.76,207.73,2.54866465]
[1756987684557,7.58,207.77,207.73,10.47866465]
[1756987685159,4.3303,207.78,207.73,10.47866465]
[1756987685561,7.58,207.77,207.73,10.47866465]
[1756987685760,4.3303,207.78,207.73,10.47866465]
[1756987686158,7.58,207.77,207.73,10.47866465]
[1756987686460,4.3303,207.78,207.73,10.47866465]
[1756987686965,7.58,207.77,207.73,10.47866465]
[1756987687154,4.3303,207.78,207.73,10.47866465]
[1756987687659,7.58,207.77,207.73,10.47866465]
[1756987688260,4.3303,207.78,207.73,10.47866465]
[1756987688756,11.9106,207.77,207.73,10.47866465]
[1756987688961,7.58,207.76,207.73,10.47866465]
[1756987690055,7.58,207.76,207.68,2.54866465]
[1756987690962,11.9115,207.73,207.69,7.93]
[1756987691558,4.3315,207.73,207.69,7.93]
[1756987691760,7.58,207.72,207.69,7.93]
[1756987693665,4.3625565,207.73,207.68,2.58484386]
[1756987693859,0.0310565,207.73,207.68,2.58484386]
[1756987694065,0.0310565,207.73,207.69,7.55]
[1756987694363,0.0310565,207.73,207.68,2.58484386]
[1756987695361,0.0310565,207.73,207.71,2.54866465]
[1756987695666,0.0310565,207.73,207.72,7.55]
[1756987698062,7.43,207.83,207.73,7.55]
[1756987698366,7.43,207.83,207.8,2.54866465]
[1756987698855,7.43,207.83,207.8,10.09866465]
[1756987699669,4.3287,207.86,207.8,2.54866465]
[1756987704467,7.43,207.87,207.8,2.54866465]
[1756987704969,7.43,207.91,207.83,2.54866465]
[1756987705160,4.3278,207.9,207.83,2.54866465]
[1756987705366,7.43,207.89,207.83,2.54866465]
[1756987705565,4.3278,207.9,207.84,0.03399884]
[1756987705971,4.3282,207.89,207.84,0.03399884]
[1756987706172,7.43,207.88,207.84,0.03399884]
[1756987706473,310.08,207.92,207.84,0.03399884]
[1756987706474,7.43,207.91,207.84,0.03399884]
[1756987707275,7.43,207.88,207.85,7.55]
[1756987708173,7.43,207.88,207.85,10.09866465]
[1756987708377,7.43,207.89,207.86,7.55]
[1756987708579,7.43,207.89,207.86,10.09866465]
[1756987709076,7.43,207.89,207.86,7.55]
[1756987709276,4.3279,207.9,207.85,10.09866465]
[1756987709474,7.43,207.89,207.85,10.09866465]
[1756987709877,7.43,207.89,207.85,2.54866465]
[1756987710071,7.43,207.89,207.86,7.55]
[1756987710872,7.43,207.89,207.85,10.09866465]
[1756987711074,4.3279,207.9,207.85,10.09866465]
[1756987712075,7.43,207.88,207.85,10.09866465]
[1756987713275,7.43,207.88,207.86,7.55]
[1756987713778,11.7581,207.89,207.86,7.55]
[1756987717380,4.3281,207.89,207.84,0.03399884]
[1756987717582,7.43,207.88,207.84,2.58266349]
[1756987717881,7.43,207.88,207.85,7.55]
[1756987719385,119.12,207.93,207.84,2.58266349]